[Event "*** Titled Tuesday Blitz"]
[Site "Chess.com"]
[Date "2021.04.20"]
[Round "4"]
[White "dretch"]
[Black "Tomekas1"]
[Result "1-0"]
[WhiteElo "2773"]
[BlackElo "2463"]
[TimeControl "180+1"]
[EndTime "10:37:19 PDT"]
[Termination "dretch won by resignation"]

1. d3 {[%clk 0:03:00.7]} 1... d5 {[%clk 0:02:59.8]} 2. Nd2 {[%clk 0:02:59.2]}
2... e5 {[%clk 0:02:59.7]} 3. Ngf3 {[%clk 0:02:58.1]} 3... Nc6 {[%clk
0:02:59.8]} 4. g3 {[%clk 0:02:57.1]} 4... Nf6 {[%clk 0:03:00.1]} 5. Bg2 {[%clk
0:02:55.5]} 5... Bg4 {[%clk 0:03:00.2]} 6. h3 {[%clk 0:02:52.4]} 6... Bxf3
{[%clk 0:03:00.5]} 7. Nxf3 {[%clk 0:02:50.5]} 7... e4 {[%clk 0:02:57.5]} 8. Nh4
{[%clk 0:02:31.4]} 8... Bc5 {[%clk 0:02:46.5]} 9. O-O {[%clk 0:02:29.5]} 9... h6
{[%clk 0:02:40.7]} 10. Nf5 {[%clk 0:02:12.9]} 10... O-O {[%clk 0:02:38.8]} 11.
d4 {[%clk 0:01:58.2]} 11... Bd6 {[%clk 0:02:39.1]} 12. c4 {[%clk 0:01:48]} 12...
dxc4 {[%clk 0:02:36.5]} 13. Qc2 {[%clk 0:01:47.3]} 13... Ne7 {[%clk 0:02:24.8]}
14. Ne3 {[%clk 0:01:42.3]} 14... c5 {[%clk 0:02:04.5]} 15. Rd1 {[%clk
0:01:33.3]} 15... cxd4 {[%clk 0:02:01.7]} 16. Rxd4 {[%clk 0:01:32.2]} 16... Qb6
{[%clk 0:02:02.2]} 17. Rxc4 {[%clk 0:01:29.9]} 17... Rac8 {[%clk 0:01:59.8]} 18.
Bd2 {[%clk 0:01:27.6]} 18... Bc5 {[%clk 0:01:51.5]} 19. Rc1 {[%clk 0:01:13.5]}
19... Bxe3 {[%clk 0:01:51.4]} 20. Bxe3 {[%clk 0:01:12.3]} 20... Rxc4 {[%clk
0:01:52]} 21. Qxc4 {[%clk 0:01:12.3]} 21... Qxb2 {[%clk 0:01:52.3]} 22. Bd4
{[%clk 0:01:05.3]} 22... Qd2 {[%clk 0:01:31.3]} 23. Qc3 {[%clk 0:00:39.7]} 23...
Qxc3 {[%clk 0:01:25.1]} 24. Rxc3 {[%clk 0:00:37.2]} 24... Ned5 {[%clk
0:01:24.4]} 25. Rc5 {[%clk 0:00:17.5]} 25... b6 {[%clk 0:01:23.8]} 26. Rc6
{[%clk 0:00:16.4]} 26... Rd8 {[%clk 0:01:22.1]} 27. e3 {[%clk 0:00:16.3]} 27...
Kf8 {[%clk 0:01:20.3]} 28. Bf1 {[%clk 0:00:13.7]} 28... Ke7 {[%clk 0:01:19.9]}
29. a3 {[%clk 0:00:12.9]} 29... Rd6 {[%clk 0:01:20]} 30. Rc8 {[%clk 0:00:12.5]}
30... Rd8 {[%clk 0:01:19.8]} 31. Rc6 {[%clk 0:00:12.5]} 31... Rd7 {[%clk
0:01:20.2]} 32. Rc8 {[%clk 0:00:05.7]} 32... Rc7 {[%clk 0:01:18.7]} 33. Ra8
{[%clk 0:00:05.5]} 33... g5 {[%clk 0:01:14]} 34. Bb5 {[%clk 0:00:05.4]} 34...
Nd7 {[%clk 0:01:12.5]} 35. Rh8 {[%clk 0:00:04.4]} 35... Nc3 {[%clk 0:01:09.6]}
36. Ba6 {[%clk 0:00:04]} 36... Ne2+ {[%clk 0:01:07.4]} 37. Bxe2 {[%clk
0:00:03.4]} 37... Rc1+ {[%clk 0:01:07.9]} 38. Kg2 {[%clk 0:00:03.9]} 38... Rc6
{[%clk 0:01:07.3]} 39. Bb5 {[%clk 0:00:03.7]} 39... Rd6 {[%clk 0:01:07.5]} 40.
Bxd7 {[%clk 0:00:04.4]} 40... Kxd7 {[%clk 0:01:08.1]} 41. Rf8 {[%clk 0:00:04.7]}
41... Ke7 {[%clk 0:01:07.6]} 42. Ra8 {[%clk 0:00:05.3]} 42... Rd7 {[%clk
0:01:07.9]} 43. Rb8 {[%clk 0:00:05.8]} 43... Rc7 {[%clk 0:01:08.2]} 44. Be5
{[%clk 0:00:05.9]} 44... Rd7 {[%clk 0:01:08.3]} 45. Bg7 {[%clk 0:00:06.6]} 45...
Ke6 {[%clk 0:01:08.4]} 46. Bxh6 {[%clk 0:00:06.5]} 1-0

[Event "*** Titled Tuesday Blitz"]
[Site "Chess.com"]
[Date "2021.04.20"]
[Round "4"]
[White "TigrVShlyape"]
[Black "anon481216"]
[Result "1-0"]
[WhiteElo "2816"]
[BlackElo "2540"]
[TimeControl "180+1"]
[EndTime "10:37:20 PDT"]
[Termination "TigrVShlyape won by resignation"]

1. e4 {[%clk 0:03:00.9]} 1... c5 {[%clk 0:02:59.7]} 2. Nf3 {[%clk 0:03:00.1]}
2... d6 {[%clk 0:02:59.8]} 3. d4 {[%clk 0:02:59.6]} 3... cxd4 {[%clk 0:03:00.1]}
4. Nxd4 {[%clk 0:02:59.8]} 4... Nf6 {[%clk 0:03:00.6]} 5. Nc3 {[%clk 0:02:59.2]}
5... a6 {[%clk 0:03:01]} 6. a4 {[%clk 0:02:59.5]} 6... e5 {[%clk 0:02:59.4]} 7.
Nf3 {[%clk 0:02:59.4]} 7... Be7 {[%clk 0:02:59]} 8. Bc4 {[%clk 0:02:59.4]} 8...
O-O {[%clk 0:02:58.5]} 9. O-O {[%clk 0:02:59.7]} 9... Be6 {[%clk 0:02:57.8]} 10.
Qe2 {[%clk 0:03:00.1]} 10... Qc7 {[%clk 0:02:53.3]} 11. Bb3 {[%clk 0:02:59.6]}
11... Rc8 {[%clk 0:02:45.6]} 12. Rd1 {[%clk 0:02:53.2]} 12... Bc4 {[%clk
0:02:36]} 13. Qe1 {[%clk 0:02:04]} 13... h6 {[%clk 0:02:23.8]} 14. Be3 {[%clk
0:02:00.7]} 14... Nbd7 {[%clk 0:02:18.1]} 15. Nd2 {[%clk 0:01:54.7]} 15... Bxb3
{[%clk 0:01:55.9]} 16. cxb3 {[%clk 0:01:49.4]} 16... Qd8 {[%clk 0:01:35.1]} 17.
Nc4 {[%clk 0:01:47.6]} 17... Qf8 {[%clk 0:01:29.1]} 18. Qe2 {[%clk 0:01:46.1]}
18... Rc6 {[%clk 0:01:23.3]} 19. b4 {[%clk 0:01:39.3]} 19... Rac8 {[%clk
0:01:12.4]} 20. b3 {[%clk 0:01:36.8]} 20... R6c7 {[%clk 0:00:38.2]} 21. b5
{[%clk 0:01:27.8]} 21... Nc5 {[%clk 0:00:27.7]} 22. Bxc5 {[%clk 0:01:21.7]}
22... Rxc5 {[%clk 0:00:27.5]} 23. h3 {[%clk 0:01:14.2]} 23... axb5 {[%clk
0:00:12.1]} 24. Nxb5 {[%clk 0:01:12.5]} 24... d5 {[%clk 0:00:12.2]} 25. exd5
{[%clk 0:01:09.6]} 25... Nxd5 {[%clk 0:00:12]} 26. Qf3 {[%clk 0:01:00.5]} 26...
Nb4 {[%clk 0:00:05.3]} 27. Qxb7 {[%clk 0:00:47.8]} 27... Bf6 {[%clk 0:00:02.1]}
28. Rab1 {[%clk 0:00:44.8]} 28... Rb8 {[%clk 0:00:01.9]} 29. Qe4 {[%clk
0:00:43.5]} 29... Nc6 {[%clk 0:00:01.2]} 30. b4 {[%clk 0:00:36.1]} 30... Rcxb5
{[%clk 0:00:01.1]} 31. axb5 {[%clk 0:00:35.8]} 1-0

[Event "*** Titled Tuesday Blitz"]
[Site "Chess.com"]
[Date "2021.04.20"]
[Round "4"]
[White "rynos0411"]
[Black "Roedor"]
[Result "1-0"]
[WhiteElo "2444"]
[BlackElo "2271"]
[TimeControl "180+1"]
[EndTime "10:37:20 PDT"]
[Termination "rynos0411 won by resignation"]

1. d4 {[%clk 0:02:59.6]} 1... Nf6 {[%clk 0:02:59.6]} 2. c4 {[%clk 0:02:58.4]}
2... g6 {[%clk 0:03:00.2]} 3. Nc3 {[%clk 0:02:58.1]} 3... d5 {[%clk 0:03:00.8]}
4. cxd5 {[%clk 0:02:58.4]} 4... Nxd5 {[%clk 0:03:01.5]} 5. Na4 {[%clk 0:02:59]}
5... Bg7 {[%clk 0:02:57.5]} 6. e4 {[%clk 0:02:58.5]} 6... Nb6 {[%clk 0:02:57.9]}
7. Nf3 {[%clk 0:02:56.1]} 7... Nxa4 {[%clk 0:02:56]} 8. Qxa4+ {[%clk 0:02:55.4]}
8... c6 {[%clk 0:02:56.4]} 9. Be3 {[%clk 0:02:45.6]} 9... O-O {[%clk 0:02:55.9]}
10. Be2 {[%clk 0:02:45.4]} 10... b5 {[%clk 0:02:55.9]} 11. Qc2 {[%clk
0:02:44.7]} 11... Bb7 {[%clk 0:02:41.3]} 12. O-O {[%clk 0:02:40.9]} 12... a5
{[%clk 0:02:36.1]} 13. Rfd1 {[%clk 0:02:32.9]} 13... Na6 {[%clk 0:02:32.1]} 14.
a3 {[%clk 0:02:28.1]} 14... a4 {[%clk 0:02:28.3]} 15. Rac1 {[%clk 0:02:23.5]}
15... Rc8 {[%clk 0:02:19.6]} 16. h3 {[%clk 0:02:15.4]} 16... Qa5 {[%clk
0:02:16.6]} 17. Bd2 {[%clk 0:01:46.7]} 17... Qb6 {[%clk 0:02:14.5]} 18. Bc3
{[%clk 0:01:46.9]} 18... e6 {[%clk 0:02:03.2]} 19. Qd2 {[%clk 0:01:42.1]} 19...
Qa7 {[%clk 0:01:52.3]} 20. h4 {[%clk 0:01:33.3]} 20... Rfd8 {[%clk 0:01:51.1]}
21. Qf4 {[%clk 0:01:28.4]} 21... c5 {[%clk 0:01:42.1]} 22. dxc5 {[%clk
0:01:17.2]} 22... Rxd1+ {[%clk 0:01:38.9]} 23. Rxd1 {[%clk 0:01:07.5]} 23...
Bxc3 {[%clk 0:01:36.8]} 24. bxc3 {[%clk 0:01:06.2]} 24... Qxc5 {[%clk
0:01:35.3]} 25. Rd7 {[%clk 0:01:03.8]} 25... Rf8 {[%clk 0:01:06.5]} 26. Rxb7
{[%clk 0:01:01.7]} 26... Qxa3 {[%clk 0:01:06.4]} 27. Ng5 {[%clk 0:00:52.7]}
27... f6 {[%clk 0:00:14.9]} 28. Nxe6 {[%clk 0:00:49.9]} 28... Qa1+ {[%clk
0:00:13.3]} 29. Kh2 {[%clk 0:00:49.1]} 29... a3 {[%clk 0:00:13.7]} 30. Rg7+
{[%clk 0:00:27]} 30... Kh8 {[%clk 0:00:13.3]} 31. Qh6 {[%clk 0:00:25.5]} 1-0

[Event "*** Titled Tuesday Blitz"]
[Site "Chess.com"]
[Date "2021.04.20"]
[Round "4"]
[White "viktorgen2021"]
[Black "Joseacorrea"]
[Result "1-0"]
[WhiteElo "2373"]
[BlackElo "2060"]
[TimeControl "180+1"]
[EndTime "10:37:20 PDT"]
[Termination "viktorgen2021 won by checkmate"]

1. d4 {[%clk 0:03:00.5]} 1... e6 {[%clk 0:03:00]} 2. Nf3 {[%clk 0:02:57.9]} 2...
f5 {[%clk 0:02:59.9]} 3. g3 {[%clk 0:02:56.5]} 3... Nf6 {[%clk 0:03:00.4]} 4.
Bg2 {[%clk 0:02:55.9]} 4... c6 {[%clk 0:03:01.3]} 5. c4 {[%clk 0:02:55.2]} 5...
d5 {[%clk 0:03:01.5]} 6. Nc3 {[%clk 0:02:53.4]} 6... Bd6 {[%clk 0:03:01]} 7. O-O
{[%clk 0:02:53.5]} 7... Nbd7 {[%clk 0:03:00.5]} 8. Nd2 {[%clk 0:02:51.5]} 8...
O-O {[%clk 0:02:59.9]} 9. f3 {[%clk 0:02:50.3]} 9... e5 {[%clk 0:02:55.6]} 10.
dxe5 {[%clk 0:02:49.3]} 10... Nxe5 {[%clk 0:02:54.3]} 11. cxd5 {[%clk
0:02:48.3]} 11... cxd5 {[%clk 0:02:51.4]} 12. f4 {[%clk 0:02:45.1]} 12... Qb6+
{[%clk 0:02:47.3]} 13. Kh1 {[%clk 0:02:34.3]} 13... Neg4 {[%clk 0:02:47.8]} 14.
Nb3 {[%clk 0:02:09.1]} 14... Nf2+ {[%clk 0:02:15.1]} 15. Rxf2 {[%clk 0:02:07.9]}
15... Qxf2 {[%clk 0:02:16]} 16. Nxd5 {[%clk 0:02:08.3]} 16... Bc5 {[%clk
0:01:20.3]} 17. Nxf6+ {[%clk 0:01:51.7]} 17... Rxf6 {[%clk 0:01:21.2]} 18. Qd5+
{[%clk 0:01:46.1]} 18... Be6 {[%clk 0:01:12.2]} 19. Qxc5 {[%clk 0:01:22.8]}
19... Qxe2 {[%clk 0:00:37.5]} 20. Be3 {[%clk 0:01:15.7]} 20... Bxb3 {[%clk
0:00:34.6]} 21. axb3 {[%clk 0:01:11.9]} 21... Re8 {[%clk 0:00:24.6]} 22. Bg1
{[%clk 0:00:57.5]} 22... Qxb2 {[%clk 0:00:23.5]} 23. Rxa7 {[%clk 0:00:51.6]}
23... h6 {[%clk 0:00:16.6]} 24. Rxb7 {[%clk 0:00:44.4]} 24... Re2 {[%clk
0:00:14.5]} 25. Qc7 {[%clk 0:00:28.7]} 25... Rg6 {[%clk 0:00:10.6]} 26. Qc4+
{[%clk 0:00:27.9]} 26... Kh7 {[%clk 0:00:10.4]} 27. Qd5 {[%clk 0:00:27.6]} 27...
h5 {[%clk 0:00:08.9]} 28. Rb8 {[%clk 0:00:27.7]} 28... h4 {[%clk 0:00:09]} 29.
Qg8+ {[%clk 0:00:26.4]} 29... Kh6 {[%clk 0:00:06.7]} 30. Qh8# {[%clk 0:00:27.3]}
1-0

[Event "*** Titled Tuesday Blitz"]
[Site "Chess.com"]
[Date "2021.04.20"]
[Round "4"]
[White "Pelopidass"]
[Black "KacperPolOK"]
[Result "1-0"]
[WhiteElo "2561"]
[BlackElo "2364"]
[TimeControl "180+1"]
[EndTime "10:37:22 PDT"]
[Termination "Pelopidass won by resignation"]

1. e4 {[%clk 0:02:59.3]} 1... c5 {[%clk 0:02:57.9]} 2. b4 {[%clk 0:02:58.6]}
2... e5 {[%clk 0:02:56.3]} 3. Nf3 {[%clk 0:02:56.8]} 3... Nc6 {[%clk 0:02:55.1]}
4. Bb2 {[%clk 0:02:52.5]} 4... Nd4 {[%clk 0:02:33.2]} 5. Bc4 {[%clk 0:02:40.7]}
5... Nxf3+ {[%clk 0:02:23.9]} 6. Qxf3 {[%clk 0:02:41.6]} 6... Qf6 {[%clk
0:02:09.8]} 7. Bxe5 {[%clk 0:02:26.3]} 7... Qxf3 {[%clk 0:02:00.7]} 8. gxf3
{[%clk 0:02:27.2]} 8... cxb4 {[%clk 0:02:00.4]} 9. a3 {[%clk 0:02:24.2]} 9...
Nf6 {[%clk 0:01:52.3]} 10. Rg1 {[%clk 0:02:17]} 10... bxa3 {[%clk 0:01:47]} 11.
Nxa3 {[%clk 0:02:16.5]} 11... d6 {[%clk 0:01:44.9]} 12. Bxf6 {[%clk 0:02:12.4]}
12... gxf6 {[%clk 0:01:44.6]} 13. Nb5 {[%clk 0:02:11.1]} 13... Kd8 {[%clk
0:01:39.8]} 14. Nxa7 {[%clk 0:02:03.6]} 14... Rb8 {[%clk 0:01:24.2]} 15. Bxf7
{[%clk 0:01:42]} 15... Bd7 {[%clk 0:01:17.8]} 16. Bd5 {[%clk 0:01:37.3]} 16...
Bh6 {[%clk 0:01:17.2]} 17. Ke2 {[%clk 0:01:36.3]} 17... Bf4 {[%clk 0:01:16.5]}
18. h4 {[%clk 0:01:31.4]} 18... Re8 {[%clk 0:01:10.8]} 19. Rgb1 {[%clk 0:01:21]}
19... Re7 {[%clk 0:01:04.6]} 20. Rxb7 {[%clk 0:01:05.2]} 20... Rxb7 {[%clk
0:01:01.7]} 21. Bxb7 {[%clk 0:01:06.1]} 21... Rg7 {[%clk 0:00:55.1]} 22. Bd5
{[%clk 0:00:58.7]} 22... Rg2 {[%clk 0:00:53.7]} 23. c4 {[%clk 0:00:39.8]} 23...
Bg3 {[%clk 0:00:49.2]} 24. Rf1 {[%clk 0:00:32]} 24... Bxh4 {[%clk 0:00:47]} 25.
Nb5 {[%clk 0:00:23.1]} 25... Bxb5 {[%clk 0:00:47]} 26. cxb5 {[%clk 0:00:24]}
26... Kc7 {[%clk 0:00:45.2]} 27. f4 {[%clk 0:00:22]} 27... Kb6 {[%clk
0:00:43.8]} 28. Kf3 {[%clk 0:00:22]} 28... Rh2 {[%clk 0:00:42.9]} 29. Bc6 {[%clk
0:00:21.9]} 29... h5 {[%clk 0:00:42.2]} 30. d4 {[%clk 0:00:20]} 30... Rh3+
{[%clk 0:00:36.7]} 31. Kg2 {[%clk 0:00:20]} 31... Rd3 {[%clk 0:00:36.7]} 32. Rh1
{[%clk 0:00:20.4]} 1-0

[Event "*** Titled Tuesday Blitz"]
[Site "Chess.com"]
[Date "2021.04.20"]
[Round "4"]
[White "GadimbayliA"]
[Black "Mikhail_Golubev"]
[Result "0-1"]
[WhiteElo "2750"]
[BlackElo "2598"]
[TimeControl "180+1"]
[EndTime "10:37:23 PDT"]
[Termination "Mikhail_Golubev won by resignation"]

1. e4 {[%clk 0:03:00.9]} 1... c5 {[%clk 0:02:59.6]} 2. Nf3 {[%clk 0:02:59.7]}
2... d6 {[%clk 0:02:59.6]} 3. d4 {[%clk 0:02:59.2]} 3... cxd4 {[%clk 0:02:59.1]}
4. Nxd4 {[%clk 0:03:00.1]} 4... Nf6 {[%clk 0:02:58.7]} 5. Nc3 {[%clk 0:03:00.3]}
5... g6 {[%clk 0:02:58.9]} 6. Be3 {[%clk 0:02:59.7]} 6... Bg7 {[%clk 0:02:59.4]}
7. Qd2 {[%clk 0:02:59.7]} 7... Nc6 {[%clk 0:02:54.6]} 8. O-O-O {[%clk
0:02:59.1]} 8... Ng4 {[%clk 0:02:40.7]} 9. Nxc6 {[%clk 0:02:57.4]} 9... bxc6
{[%clk 0:02:40.5]} 10. Bd4 {[%clk 0:02:57.9]} 10... Bh6 {[%clk 0:02:33.2]} 11.
Be3 {[%clk 0:02:38.7]} 11... Nxe3 {[%clk 0:02:32.7]} 12. fxe3 {[%clk 0:02:39.6]}
12... Qb6 {[%clk 0:02:29.8]} 13. Re1 {[%clk 0:02:38.4]} 13... Rb8 {[%clk
0:02:24.8]} 14. b3 {[%clk 0:02:17.2]} 14... Qb4 {[%clk 0:02:15.9]} 15. e5 {[%clk
0:02:07.3]} 15... Bg7 {[%clk 0:02:09.1]} 16. Nd1 {[%clk 0:01:55.4]} 16... Qa3+
{[%clk 0:02:05.6]} 17. Kb1 {[%clk 0:01:55.7]} 17... Bxe5 {[%clk 0:02:04.4]} 18.
h4 {[%clk 0:01:55.6]} 18... a5 {[%clk 0:01:55.6]} 19. h5 {[%clk 0:01:55.3]}
19... g5 {[%clk 0:01:53.3]} 20. Bc4 {[%clk 0:01:51.1]} 20... Bg4 {[%clk
0:01:37.1]} 21. c3 {[%clk 0:01:46.2]} 21... a4 {[%clk 0:01:24.7]} 22. Qb2 {[%clk
0:01:35.5]} 22... Qc5 {[%clk 0:01:18.7]} 23. Rhf1 {[%clk 0:01:32.5]} 23... O-O
{[%clk 0:01:17.4]} 24. Nf2 {[%clk 0:01:29.1]} 24... Bxh5 {[%clk 0:01:13.9]} 25.
Nd3 {[%clk 0:01:27.9]} 25... Bg6 {[%clk 0:01:12.6]} 26. e4 {[%clk 0:01:27.3]}
26... Qxc4 {[%clk 0:01:02]} 27. bxc4 {[%clk 0:01:28.2]} 27... Bxc3 {[%clk
0:01:00.2]} 28. Kc2 {[%clk 0:01:12.9]} 28... Bxb2 {[%clk 0:00:59]} 29. Nxb2
{[%clk 0:01:13.8]} 29... a3 {[%clk 0:00:58.7]} 30. Nd3 {[%clk 0:01:14]} 30... c5
{[%clk 0:00:56.3]} 31. Kc3 {[%clk 0:01:13.2]} 31... f6 {[%clk 0:00:54.5]} 32. g4
{[%clk 0:01:13.4]} 32... h5 {[%clk 0:00:49.5]} 33. gxh5 {[%clk 0:01:12.1]} 33...
Bxh5 {[%clk 0:00:49.6]} 34. Rh1 {[%clk 0:01:13]} 34... Bg6 {[%clk 0:00:48.7]}
35. Nc1 {[%clk 0:01:10]} 35... Rb2 {[%clk 0:00:44.7]} 36. Rhg1 {[%clk
0:00:57.3]} 36... Kg7 {[%clk 0:00:39.2]} 37. Rh1 {[%clk 0:00:56.3]} 37... Rh8
{[%clk 0:00:32.4]} 38. Rxh8 {[%clk 0:00:56]} 38... Kxh8 {[%clk 0:00:32.4]} 39.
Re2 {[%clk 0:00:56.5]} 39... Rxe2 {[%clk 0:00:26.6]} 40. Nxe2 {[%clk 0:00:57.4]}
40... Bxe4 {[%clk 0:00:26.4]} 41. Kb3 {[%clk 0:00:58.3]} 41... Bd3 {[%clk
0:00:24.9]} 42. Nc1 {[%clk 0:00:48.9]} 42... Bf1 {[%clk 0:00:24.7]} 43. Kxa3
{[%clk 0:00:49.8]} 43... g4 {[%clk 0:00:23.4]} 44. Nb3 {[%clk 0:00:50.7]} 44...
g3 {[%clk 0:00:22]} 0-1

[Event "*** Titled Tuesday Blitz"]
[Site "Chess.com"]
[Date "2021.04.20"]
[Round "4"]
[White "korbul"]
[Black "PawnEatingZombie"]
[Result "1-0"]
[WhiteElo "2591"]
[BlackElo "2195"]
[TimeControl "180+1"]
[EndTime "10:37:26 PDT"]
[Termination "korbul won by checkmate"]

1. e4 {[%clk 0:03:00.9]} 1... c6 {[%clk 0:02:59.4]} 2. Nf3 {[%clk 0:02:59.8]}
2... d5 {[%clk 0:03:00.3]} 3. Nc3 {[%clk 0:02:59.6]} 3... Bg4 {[%clk 0:03:00]}
4. h3 {[%clk 0:02:59.1]} 4... Bh5 {[%clk 0:03:00.5]} 5. g4 {[%clk 0:02:57.2]}
5... Bg6 {[%clk 0:02:59.9]} 6. exd5 {[%clk 0:02:56.4]} 6... cxd5 {[%clk
0:03:00.8]} 7. Bb5+ {[%clk 0:02:52.6]} 7... Nc6 {[%clk 0:03:00.8]} 8. Ne5 {[%clk
0:02:45.9]} 8... Rc8 {[%clk 0:03:00.2]} 9. d4 {[%clk 0:02:39]} 9... e6 {[%clk
0:02:59.8]} 10. h4 {[%clk 0:02:37.1]} 10... f6 {[%clk 0:02:59.4]} 11. Nxg6
{[%clk 0:02:36.3]} 11... hxg6 {[%clk 0:03:00.3]} 12. Bd3 {[%clk 0:02:11.8]}
12... Kf7 {[%clk 0:02:52.8]} 13. h5 {[%clk 0:02:07.6]} 13... gxh5 {[%clk
0:02:51.3]} 14. gxh5 {[%clk 0:02:06.6]} 14... Nge7 {[%clk 0:02:36.4]} 15. Be3
{[%clk 0:01:53.1]} 15... Nb4 {[%clk 0:01:44.9]} 16. Bg6+ {[%clk 0:01:13.9]}
16... Kg8 {[%clk 0:01:44.1]} 17. Qg4 {[%clk 0:01:07.2]} 17... Qb6 {[%clk
0:01:14.6]} 18. O-O-O {[%clk 0:00:59.7]} 18... Rxc3 {[%clk 0:01:07.5]} 19. bxc3
{[%clk 0:00:58.9]} 19... Nxa2+ {[%clk 0:01:07.1]} 20. Kd2 {[%clk 0:00:59.1]}
20... Qc6 {[%clk 0:01:03.2]} 21. c4 {[%clk 0:00:55.9]} 21... dxc4 {[%clk
0:00:57]} 22. c3 {[%clk 0:00:55.2]} 22... f5 {[%clk 0:00:48.9]} 23. Qg3 {[%clk
0:00:34.9]} 23... Nd5 {[%clk 0:00:47.6]} 24. h6 {[%clk 0:00:22.6]} 24... Naxc3
{[%clk 0:00:43.4]} 25. h7+ {[%clk 0:00:20.1]} 25... Rxh7 {[%clk 0:00:42]} 26.
Bxh7+ {[%clk 0:00:20.7]} 26... Kh8 {[%clk 0:00:41.5]} 27. Bxf5+ {[%clk
0:00:18.6]} 27... Kg8 {[%clk 0:00:39]} 28. Bh7+ {[%clk 0:00:14.3]} 28... Kf7
{[%clk 0:00:26.8]} 29. Bg6+ {[%clk 0:00:14.4]} 29... Ke7 {[%clk 0:00:26.7]} 30.
Bg5+ {[%clk 0:00:14.1]} 30... Kd7 {[%clk 0:00:26.2]} 31. Qb8 {[%clk 0:00:13.4]}
31... Be7 {[%clk 0:00:17.5]} 32. Be8# {[%clk 0:00:12.6]} 1-0

[Event "*** Titled Tuesday Blitz"]
[Site "Chess.com"]
[Date "2021.04.20"]
[Round "4"]
[White "beto-betun"]
[Black "JiiHart"]
[Result "1-0"]
[WhiteElo "2220"]
[BlackElo "1988"]
[TimeControl "180+1"]
[EndTime "10:37:29 PDT"]
[Termination "beto-betun won by resignation"]

1. d4 {[%clk 0:02:48.5]} 1... Nf6 {[%clk 0:02:58.9]} 2. Nf3 {[%clk 0:02:47.8]}
2... g6 {[%clk 0:02:58.8]} 3. g3 {[%clk 0:02:47.3]} 3... Bg7 {[%clk 0:02:58.5]}
4. Bg2 {[%clk 0:02:46.4]} 4... O-O {[%clk 0:02:57.6]} 5. O-O {[%clk 0:02:45.3]}
5... d5 {[%clk 0:02:57.5]} 6. c4 {[%clk 0:02:44.4]} 6... c6 {[%clk 0:02:57.2]}
7. b3 {[%clk 0:02:39.8]} 7... Nbd7 {[%clk 0:02:56.1]} 8. Bb2 {[%clk 0:02:31.8]}
8... a6 {[%clk 0:02:41.9]} 9. Nbd2 {[%clk 0:02:29.6]} 9... b5 {[%clk 0:02:41]}
10. Qc2 {[%clk 0:02:23.3]} 10... bxc4 {[%clk 0:02:32.2]} 11. bxc4 {[%clk
0:02:21.8]} 11... a5 {[%clk 0:02:30.5]} 12. Ba3 {[%clk 0:02:15.4]} 12... Re8
{[%clk 0:02:26.6]} 13. Rfe1 {[%clk 0:02:11.8]} 13... e5 {[%clk 0:01:49.5]} 14.
dxe5 {[%clk 0:02:09.1]} 14... Nxe5 {[%clk 0:01:49.4]} 15. Nxe5 {[%clk
0:02:08.3]} 15... Rxe5 {[%clk 0:01:49.5]} 16. Nf3 {[%clk 0:02:03.3]} 16... Bf5
{[%clk 0:01:41.6]} 17. Qd1 {[%clk 0:01:59]} 17... Re4 {[%clk 0:01:27.2]} 18. Nd4
{[%clk 0:01:57.1]} 18... Rxd4 {[%clk 0:01:21.8]} 19. Qxd4 {[%clk 0:01:56.6]}
19... Ne4 {[%clk 0:01:19.4]} 20. Qd1 {[%clk 0:01:56.6]} 20... Bxa1 {[%clk
0:01:18.6]} 21. Qxa1 {[%clk 0:01:57.5]} 21... Qf6 {[%clk 0:01:17.8]} 22. Bb2
{[%clk 0:01:51.5]} 22... Qe6 {[%clk 0:01:11.4]} 23. cxd5 {[%clk 0:01:46.5]}
23... cxd5 {[%clk 0:01:11.3]} 24. f3 {[%clk 0:01:46.5]} 24... Ng5 {[%clk
0:01:02.8]} 25. Bd4 {[%clk 0:01:39.8]} 25... Nh3+ {[%clk 0:00:45.2]} 26. Bxh3
{[%clk 0:01:28.7]} 26... Bxh3 {[%clk 0:00:44.3]} 27. Qc1 {[%clk 0:01:29.1]}
27... f6 {[%clk 0:00:31.1]} 28. Qf4 {[%clk 0:01:23.9]} 28... Bf5 {[%clk
0:00:29.2]} 29. g4 {[%clk 0:01:21.5]} 29... Bd3 {[%clk 0:00:19.2]} 30. Kf2
{[%clk 0:01:14.1]} 30... Re8 {[%clk 0:00:17.9]} 31. a4 {[%clk 0:01:10.3]} 31...
f5 {[%clk 0:00:16.4]} 32. Qc7 {[%clk 0:01:06.7]} 32... Re7 {[%clk 0:00:12.4]}
33. Qxa5 {[%clk 0:01:06.9]} 33... Bxe2 {[%clk 0:00:11.4]} 34. Qd8+ {[%clk
0:00:59.8]} 34... Re8 {[%clk 0:00:10.9]} 35. Qc7 {[%clk 0:00:59.9]} 35... Re7
{[%clk 0:00:10.6]} 36. Qb8+ {[%clk 0:00:57.8]} 36... Re8 {[%clk 0:00:10.7]} 37.
Qb7 {[%clk 0:00:57.1]} 37... Re7 {[%clk 0:00:10.9]} 38. Qb2 {[%clk 0:00:54.5]}
38... fxg4 {[%clk 0:00:06.5]} 39. Rxe2 {[%clk 0:00:49.9]} 39... Qxe2+ {[%clk
0:00:05.3]} 40. Qxe2 {[%clk 0:00:50.8]} 40... Rxe2+ {[%clk 0:00:04.8]} 41. Kxe2
{[%clk 0:00:51.7]} 41... gxf3+ {[%clk 0:00:05.2]} 42. Kxf3 {[%clk 0:00:52.6]}
42... Kf7 {[%clk 0:00:05.7]} 43. a5 {[%clk 0:00:53.2]} 43... Ke6 {[%clk
0:00:06.2]} 44. a6 {[%clk 0:00:53.9]} 1-0